lending/lending_fUSD_20250122
["ID","MTS","AMOUNT","RATE_DAILY","PERIOD"]
[349924333,1737507038075,-329.45,0.00020336,2]
[349924334,1737507038084,-924.38,0.00020382,2]
[349924335,1737507038094,-699.55,0.00020437,2]
[349924336,1737507038103,-250.0,0.00020471,2]
[349924337,1737507038114,-174.17,0.00020535,2]
[349924338,1737507038123,-949.256,0.00020749,2]
[349924339,1737507038132,-23237.87,0.00020749,2]
[349924340,1737507038141,-500.0,0.00020792,2]
[349924341,1737507038151,-500.0,0.00020792,2]
[349924342,1737507038160,-500.0,0.00020792,2]
[349924343,1737507038169,-220.08,0.00020792,2]
[349924344,1737507038179,-500.0,0.00020792,2]
[349924345,1737507038188,-500.0,0.00020792,2]
[349924346,1737507038198,-500.0,0.00020792,2]
[349924347,1737507038207,-500.0,0.00020792,2]
[349924348,1737507038217,-505.70896096,0.00020792,2]
[349924349,1737507038229,-500.0,0.00020792,2]
[349924350,1737507038238,-500.0,0.00020792,2]
[349924351,1737507038248,-500.0,0.00020792,2]
[349924352,1737507038257,-459.1140899,0.00020792,2]
[349924353,1737507038267,-500.0,0.00020792,2]
[349924354,1737507038276,-500.0,0.00020792,2]
[349924355,1737507038285,-500.0,0.00020792,2]
[349924356,1737507038294,-500.0,0.00020792,2]
[349924358,1737507038304,-500.0,0.00020792,2]
[349924360,1737507038314,-500.0,0.00020792,2]
[349924362,1737507038323,-500.0,0.00020792,2]
[349924364,1737507038333,-182.84734115,0.00020792,2]
[349924366,1737507038342,-500.0,0.00020792,2]
[349924368,1737507038351,-500.0,0.00020792,2]
[349924370,1737507038361,-500.0,0.00020792,2]
[349924372,1737507038370,-500.0,0.00020792,2]
[349924374,1737507038379,-500.0,0.00020792,2]
[349924376,1737507038388,-500.0,0.00020792,2]
[349924378,1737507038398,-500.0,0.00020792,2]
[349924379,1737507038408,-500.0,0.00020792,2]
[349924382,1737507038418,-500.0,0.00020792,2]
[349924383,1737507038428,-500.0,0.00020792,2]
[349924385,1737507038437,-500.0,0.00020792,2]
[349924387,1737507038446,-500.0,0.00020792,2]
[349924389,1737507038455,-500.0,0.00020792,2]
[349924391,1737507038465,-289.3603859,0.00020792,2]
[349924394,1737507038477,-210.6396141,0.00020792,2]
[349924396,1737507038486,-388.85,0.00020809,2]
[349924398,1737507038495,-400.56,0.00020809,2]
[349924400,1737507038505,-559.12,0.00021033,2]
[349924402,1737507038514,-376.76732398,0.00021066,2]
[349924403,1737507038522,-506.66015082,0.00021066,2]
[349924405,1737507038532,-500.0,0.00021066,2]
[349924407,1737507038542,-314.01381341,0.00021066,2]
[349924410,1737507038551,-500.0,0.00021066,2]
[349924411,1737507038560,-500.0,0.00021066,2]
[349924413,1737507038570,-500.0,0.00021066,2]
[349924416,1737507038580,-500.0,0.00021066,2]
[349924418,1737507038590,-500.0,0.00021066,2]
[349924420,1737507038599,-169.77240835,0.00021066,2]
[349924422,1737507038608,-500.0,0.00021066,2]
[349924424,1737507038617,-500.0,0.00021066,2]
[349924425,1737507038627,-500.0,0.00021066,2]
[349924427,1737507038637,-63.98506436,0.00021066,2]
[349924430,1737507038652,-436.01493564,0.00021066,2]
[349924432,1737507038661,-500.0,0.00021066,2]
[349924434,1737507038672,-596.02,0.00021147,2]
[349924436,1737507038681,-328.00858562,0.00021178,2]
[349924438,1737507038693,-171.99141438,0.00021178,2]
[349924440,1737507038704,-265.9371,0.00021239,2]
[349924442,1737507038714,-220.8779,0.00021239,2]
[349924444,1737507038723,-311.9583,0.0002124,2]
[349924446,1737507038735,-500.0,0.00021339,2]
[349924448,1737507038744,-500.0,0.00021339,2]
[349924450,1737507038753,-500.0,0.00021339,2]
[349924452,1737507038763,-500.0,0.00021339,2]
[349924454,1737507038772,-431.62970497,0.00021339,2]
[349924456,1737507038782,-311.53,0.00021339,2]
[349924458,1737507038792,-500.0,0.00021339,2]
[349924460,1737507038802,-538.34384551,0.00021339,2]
[349924462,1737507038811,-408.89084401,0.00021339,2]
[349924464,1737507038821,-479.55524365,0.00021339,2]
[349924466,1737507038831,-500.0,0.00021339,2]
[349924468,1737507038840,-500.0,0.00021339,2]
[349924470,1737507038849,-500.0,0.00021339,2]
[349924472,1737507038859,-369.25928526,0.00021339,2]
[349924473,1737507038869,-500.0,0.00021339,2]
[349924474,1737507038879,-500.0,0.00021339,2]
[349924475,1737507038889,-500.0,0.00021339,2]
[349924476,1737507038898,-500.0,0.00021339,2]
[349924477,1737507038908,-500.0,0.00021339,2]
[349924478,1737507038917,-447.51724005,0.00021339,2]
[349924479,1737507038928,-500.0,0.00021339,2]
[349924480,1737507038944,-500.0,0.00021339,2]
[349924481,1737507038954,-500.0,0.00021339,2]
[349924482,1737507038963,-500.0,0.00021339,2]
[349924483,1737507038973,-500.0,0.00021339,2]
[349924484,1737507038983,-500.0,0.00021339,2]
[349924485,1737507038993,-500.0,0.00021339,2]
[349924486,1737507039004,-500.0,0.00021339,2]
[349924487,1737507039014,-500.0,0.00021339,2]
[349924488,1737507039024,-500.0,0.00021339,2]
[349924489,1737507039034,-500.0,0.00021339,2]
[349924490,1737507039044,-500.0,0.00021339,2]
[349924491,1737507039054,-500.0,0.00021339,2]
[349924492,1737507039065,-500.0,0.00021339,2]
[349924493,1737507039075,-500.0,0.00021339,2]
[349924494,1737507039085,-500.0,0.00021339,2]
[349924495,1737507039095,-500.0,0.00021339,2]
[349924496,1737507039105,-500.0,0.00021339,2]
[349924497,1737507039114,-500.0,0.00021339,2]
[349924498,1737507039123,-500.0,0.00021339,2]
[349924499,1737507039133,-500.0,0.00021339,2]
[349924500,1737507039143,-500.0,0.00021339,2]
[349924501,1737507039153,-500.0,0.00021339,2]
[349924502,1737507039163,-500.0,0.00021339,2]
[349924503,1737507039172,-500.0,0.00021339,2]
[349924504,1737507039182,-500.0,0.00021339,2]
[349924505,1737507039192,-500.0,0.00021339,2]
[349924506,1737507039202,-500.0,0.00021339,2]
[349924507,1737507039211,-500.0,0.00021339,2]
[349924508,1737507039221,-416.17299085,0.00021339,2]
[349924509,1737507039233,-500.0,0.00021339,2]
[349924510,1737507039243,-500.0,0.00021339,2]
[349924511,1737507039252,-500.0,0.00021339,2]
[349924512,1737507039261,-500.0,0.00021339,2]
[349924513,1737507039271,-500.0,0.00021339,2]
[349924514,1737507039280,-500.0,0.00021339,2]
[349924515,1737507039290,-500.0,0.00021339,2]
[349924516,1737507039299,-500.0,0.00021339,2]
[349924517,1737507039309,-500.0,0.00021339,2]
[349924518,1737507039318,-500.0,0.00021339,2]
[349924519,1737507039328,-500.0,0.00021339,2]
[349924520,1737507039338,-500.0,0.00021339,2]
[349924521,1737507039347,-500.0,0.00021339,2]
[349924522,1737507039357,-500.0,0.00021339,2]
[349924523,1737507039367,-517.77,0.00021339,2]
[349924524,1737507039377,-500.0,0.00021339,2]
[349924525,1737507039386,-500.0,0.00021339,2]
[349924526,1737507039395,-500.0,0.00021339,2]
[349924527,1737507039405,-500.0,0.00021339,2]
[349924528,1737507039415,-500.0,0.00021339,2]
[349924529,1737507039425,-500.0,0.00021339,2]
[349924530,1737507039435,-500.0,0.00021339,2]
[349924531,1737507039444,-500.0,0.00021339,2]
[349924532,1737507039454,-500.0,0.00021339,2]
[349924533,1737507039464,-500.0,0.00021339,2]
[349924534,1737507039473,-500.0,0.00021339,2]
[349924535,1737507039484,-500.0,0.0002134,2]
[349924536,1737507039493,-500.0,0.0002134,2]
[349924537,1737507039503,-467.57135408,0.0002134,2]
[349924538,1737507039512,-500.0,0.0002134,2]
[349924539,1737507039522,-500.0,0.0002134,2]
[349924540,1737507039531,-500.0,0.0002134,2]
[349924541,1737507039541,-500.0,0.0002134,2]
[349924542,1737507039550,-500.0,0.0002134,2]
[349924543,1737507039560,-500.0,0.0002134,2]
[349924544,1737507039570,-500.0,0.0002134,2]
[349924545,1737507039580,-500.0,0.0002134,2]
[349924546,1737507039590,-500.0,0.00021356,2]
[349924547,1737507039600,-1791.0302,0.00021414,2]
[349924548,1737507039609,-154.33332251,0.00021414,2]
[349924549,1737507039625,-1269.0,0.00021444,2]
[349924550,1737507039638,-2018.0,0.00021444,2]
[349924551,1737507039648,-150.0,0.00021444,2]
[349924552,1737507039659,-636.0,0.00021444,2]
[349924553,1737507039671,-567.0,0.00021444,2]
[349924554,1737507039680,-1864.0,0.00021444,2]
[349924555,1737507039690,-2948.0,0.00021444,2]
[349924556,1737507039700,-1261.0,0.00021444,2]
[349924557,1737507039712,-781.0,0.00021444,2]
[349924558,1737507039722,-907.0,0.00021444,2]
[349924559,1737507039732,-3984.0,0.00021444,2]
[349924560,1737507039741,-537.0,0.00021444,2]
[349924561,1737507039751,-150.0,0.00021444,2]
[349924562,1737507039761,-150.0,0.00021444,2]
[349924563,1737507039770,-3902.0,0.00021444,2]
[349924564,1737507039780,-154.33332251,0.00021475,2]
[349924565,1737507039790,-11917.29693222,0.00021514,2]
[349924567,1737507039804,-1148.78842692,0.00021514,2]
[349924569,1737507039815,-3600.0,0.00021514,2]
[349924572,1737507039826,-507.71589656,0.00021514,2]
[349924574,1737507039837,-1516.35289063,0.00021514,2]
[349924576,1737507039848,-1383.91575475,0.00021514,2]
[349924578,1737507039863,-506.85,0.00021514,2]
[349924581,1737507039875,-4087.13897112,0.00021514,2]
[349924592,1737507040246,-1660.07913423,0.00021513,2]
[349924593,1737507040258,-4000.39879996,0.00021513,2]
[349924594,1737507040270,-1249.36638864,0.00021513,2]
[349924595,1737507040281,-12699.82557717,0.00021513,2]
[349924596,1737507040291,-14250.85582149,0.00021514,2]
[349924597,1737507040302,-3438.70580631,0.00021514,2]
[349924598,1737507040312,-608.4299,0.00021514,2]
[349924599,1737507040322,-154.33332251,0.00021536,2]
[349924600,1737507040333,-154.33332251,0.00021596,2]
[349924601,1737507040342,-396.27737799,0.00021613,2]
[349924602,1737507040354,-103.72262201,0.00021613,2]
[349924603,1737507040363,-201.28711734,0.00021613,2]
[349924604,1737507040373,-500.0,0.00021613,2]
[349924605,1737507040382,-1.91185585,0.00021613,2]
[349924606,1737507040393,-498.08814415,0.00021613,2]
[349924607,1737507040402,-500.0,0.00021613,2]
[349924608,1737507040412,-373.32665427,0.00021613,2]
[349924609,1737507040424,-126.67334573,0.00021613,2]
[349924610,1737507040433,-170.28046509,0.00021613,2]
[349924611,1737507040448,-329.71953491,0.00021613,2]
[349924612,1737507040457,-274.57861458,0.00021613,2]
[349924613,1737507040469,-225.42138542,0.00021613,2]
[349924614,1737507040479,-500.0,0.00021613,2]
[349924615,1737507040488,-500.0,0.00021613,2]
[349924616,1737507040498,-160.18472116,0.00021613,2]
[349924617,1737507040522,-339.81527884,0.00021613,2]
[349924618,1737507040532,-500.0,0.00021613,2]
[349924619,1737507040542,-500.0,0.00021613,2]
[349924620,1737507040552,-353.58312866,0.00021613,2]
[349924621,1737507040565,-146.41687134,0.00021613,2]
[349924623,1737507040575,-500.0,0.00021613,2]
[349924625,1737507040584,-478.66112166,0.00021613,2]
[349924639,1737507043086,-21.33887834,0.00021613,2]
[349924640,1737507043095,-500.0,0.00021613,2]
[349924641,1737507043106,-283.06112166,0.00021613,2]
[349924642,1737507043191,-216.93887834,0.00021613,2]
[349924643,1737507043201,-500.0,0.00021614,2]
[349924644,1737507043210,-500.0,0.00021614,2]
[349924645,1737507043221,-519.77901482,0.00021614,2]
[349924646,1737507043230,-99.44839684,0.00021614,2]
[349924647,1737507043241,-400.55160316,0.00021614,2]
[349924648,1737507043251,-500.0,0.00021614,2]
[349924649,1737507043260,-500.0,0.00021614,2]
[349924650,1737507043270,-500.0,0.00021614,2]
[349924651,1737507043279,-500.0,0.00021614,2]
[349924652,1737507043289,-500.0,0.00021614,2]
[349924653,1737507043299,-1692.22,0.00021614,2]
[349924654,1737507043308,-500.46113541,0.00021614,2]
[349924655,1737507043318,-214.79957658,0.00021614,2]
[349924656,1737507043350,-285.20042342,0.00021614,2]
[349924657,1737507043360,-500.0,0.00021614,2]
[349924658,1737507043370,-500.0,0.00021614,2]
[349924659,1737507043379,-500.0,0.00021614,2]
[349924660,1737507043390,-500.0,0.00021614,2]
[349924661,1737507043399,-500.0,0.00021614,2]
[349924662,1737507043408,-321.37367715,0.00021614,2]
[349924663,1737507043418,-500.0,0.00021614,2]
[349924664,1737507043427,-500.0,0.00021614,2]
[349924665,1737507043437,-500.0,0.00021614,2]
[349924666,1737507043447,-500.0,0.00021614,2]
[349924667,1737507043456,-500.0,0.00021614,2]
[349924668,1737507043466,-500.0,0.00021614,2]
[349924669,1737507043475,-500.0,0.00021614,2]
[349924670,1737507043485,-500.0,0.00021614,2]
[349924671,1737507043495,-500.0,0.00021614,2]
[349924672,1737507043505,-500.0,0.00021614,2]
[349924673,1737507043514,-500.0,0.00021614,2]
[349924674,1737507043525,-500.0,0.00021614,2]
[349924675,1737507043536,-1147.73,0.00021614,2]
[349924676,1737507043545,-500.0,0.00021614,2]
[349924677,1737507043555,-790.03,0.00021614,2]
[349924678,1737507043564,-733.18,0.00021614,2]
[349924679,1737507043573,-500.0,0.00021614,2]
[349924680,1737507043583,-500.0,0.00021614,2]
[349924681,1737507043592,-500.0,0.00021614,2]
[349924682,1737507043601,-663.14,0.00021614,2]
[349924683,1737507043611,-555.34,0.00021614,2]
[349924684,1737507043620,-590.93,0.00021614,2]
[349924685,1737507043630,-500.0,0.00021614,2]
[349924686,1737507043640,-500.0,0.00021614,2]
[349924687,1737507043650,-925.53,0.00021614,2]
[349924688,1737507043659,-543.95,0.00021614,2]
[349924689,1737507043671,-568.87,0.00021614,2]
[349924690,1737507043680,-928.4,0.00021614,2]
[349924691,1737507043691,-500.0,0.00021614,2]
[349924692,1737507043701,-378.13834771,0.00021614,2]
[349924693,1737507043711,-500.0,0.00021614,2]
[349924694,1737507043721,-500.0,0.00021614,2]
[349924695,1737507043731,-500.0,0.00021614,2]
[349924696,1737507043741,-500.0,0.00021614,2]
[349924697,1737507043750,-500.0,0.00021614,2]
[349924698,1737507043760,-728.6,0.00021614,2]
[349924699,1737507043769,-674.08,0.00021759,2]
[349924700,1737507043778,-2121.5069,0.00021765,2]
[349924701,1737507043787,-594.55,0.00021768,2]
[349924702,1737507043798,-500.0,0.00021768,2]
[349924703,1737507043807,-1372.57,0.00021768,2]
[349924704,1737507043817,-500.0,0.00021768,2]
[349924705,1737507043827,-500.0,0.00021768,2]
[349924706,1737507043836,-793.46,0.00021768,2]
[349924707,1737507043846,-1294.87,0.00021768,2]
[349924708,1737507043855,-800.75,0.00021768,2]
[349924709,1737507043865,-746.56,0.00021768,2]
[349924710,1737507043874,-500.0,0.00021768,2]
[349924711,1737507043884,-500.0,0.00021768,2]
[349924712,1737507043894,-603.96,0.00021768,2]
[349924713,1737507043903,-557.52,0.00021768,2]
[349924715,1737507043913,-1445.3,0.00021768,2]
[349924717,1737507043923,-1530.2,0.00021768,2]
[349924719,1737507043932,-748.99,0.00021768,2]
[349924721,1737507043942,-500.0,0.00021768,2]
[349924723,1737507043952,-500.0,0.00021768,2]
[349924725,1737507043961,-1448.92,0.00021768,2]
[349924726,1737507043971,-500.0,0.00021768,2]
[349924727,1737507043982,-500.0,0.00021768,2]
[349924728,1737507043991,-500.0,0.00021768,2]
[349924729,1737507044001,-500.0,0.00021768,2]
[349924730,1737507044010,-500.0,0.00021768,2]
[349924731,1737507044020,-925.43,0.00021768,2]
[349924732,1737507044030,-691.72,0.00021768,2]
[349924733,1737507044039,-500.0,0.00021768,2]
[349924734,1737507044048,-500.0,0.00021768,2]
[349924735,1737507044058,-677.06,0.00021768,2]
[349924736,1737507044068,-367.67852413,0.00021768,2]
[349924737,1737507044077,-500.0,0.00021768,2]
[349924738,1737507044087,-514.42,0.00021768,2]
[349924739,1737507044097,-522.42,0.00021768,2]
[349924740,1737507044106,-500.0,0.00021768,2]
[349924741,1737507044115,-1340.56,0.00021768,2]
[349924742,1737507044125,-500.0,0.00021768,2]
[349924743,1737507044134,-500.0,0.00021768,2]
[349924744,1737507044143,-500.0,0.00021769,2]
[349924745,1737507044152,-733.41,0.00021769,2]
[349924746,1737507044162,-1734.56,0.00021769,2]
[349924747,1737507044171,-500.0,0.00021769,2]
[349924748,1737507044181,-285.704268,0.00021769,2]
[349924749,1737507044190,-630.01,0.00021769,2]
[349924750,1737507044199,-500.0,0.00021769,2]
[349924751,1737507044209,-162.597979,0.00021769,2]
[349924752,1737507044218,-500.0,0.00021769,2]
[349924753,1737507044227,-811.85,0.00021769,2]
[349924754,1737507044236,-159.550044,0.00021769,2]
[349924755,1737507044246,-596.08,0.00021769,2]
[349924756,1737507044256,-570.76,0.00021769,2]
[349924757,1737507044265,-934.8,0.00021769,2]
[349924758,1737507044275,-850.86,0.00021769,2]
[349924759,1737507044284,-543.07,0.00021769,2]
[349924760,1737507044294,-1230.74,0.00021769,2]
[349924761,1737507044304,-941.44,0.00021769,2]
[349924762,1737507044313,-1977.06,0.00021769,2]
[349924763,1737507044322,-1028.23,0.00021769,2]
[349924764,1737507044332,-500.0,0.00021769,2]
[349924765,1737507044342,-2351.9,0.00021769,2]
[349924766,1737507044351,-569.17,0.00021769,2]
[349924767,1737507044361,-1298.65,0.00021769,2]
[349924768,1737507044371,-500.0,0.00021769,2]
[349924769,1737507044383,-500.0,0.00021769,2]
[349924770,1737507044394,-1025.24,0.00021769,2]
[349924771,1737507044407,-500.0,0.00021769,2]
[349924772,1737507044420,-876.7,0.00021769,2]
[349924773,1737507044432,-594.4,0.00021769,2]
[349924774,1737507044442,-1262.49,0.00021769,2]
[349924775,1737507044453,-661.3,0.00021769,2]
[349924776,1737507044464,-1862.10347554,0.0002177,2]
[349924777,1737507044476,-500.0,0.00021799,2]
[349924778,1737507044488,-500.0,0.00021799,2]
[349924779,1737507044500,-500.0,0.00021799,2]
[349924780,1737507044511,-500.0,0.00021799,2]
[349924781,1737507044523,-500.0,0.00021799,2]
[349924782,1737507044534,-500.0,0.00021799,2]
[349924783,1737507044546,-500.0,0.00021799,2]
[349924784,1737507044559,-500.0,0.00021799,2]
[349924785,1737507044571,-500.0,0.00021799,2]
[349924786,1737507044582,-234.91061982,0.00021799,2]
[349924790,1737507046069,-605.0927184,0.00021414,2]
[349924791,1737507046125,-1185.26478251,0.00021414,2]
[349924792,1737507046230,-3744.44476325,0.00021414,2]
[349924804,1737507168002,10000.0,0.00024,120]
[349924805,1737507181774,10000.0,0.00024,120]
[349924806,1737507211240,8277.4,0.00024,120]
[349924807,1737507255563,200.0,0.00024,120]
[349924808,1737507259080,200.0,0.00024,120]
[349924809,1737507354952,200.0,0.00024,120]
[349924810,1737507356992,200.0,0.00024,120]
[349924812,1737507644796,155.87,0.00010137,2]
[349924813,1737507832795,9592.11870227,0.00024,120]
[349924814,1737507876148,7848.09711999,0.00024,120]
[349924845,1737508232320,-550.0,0.00015,2]
[349924846,1737508232331,-683.01,0.0001867,2]
[349924847,1737508232341,-2215.0,0.000191,2]
[349924848,1737508232351,-438.76664128,0.000191,2]
[349924849,1737508232361,-500.0,0.00019164,2]
[349924850,1737508232371,-500.0,0.00019164,2]
[349924851,1737508232381,-636.0,0.00020338,2]
[349924852,1737508232392,-150.0,0.00020338,2]
[349924853,1737508232402,-1864.0,0.00020338,2]
[349924854,1737508232411,-781.0,0.00020338,2]
[349924855,1737508232421,-2948.0,0.00020338,2]
[349924856,1737508232431,-907.0,0.00020338,2]
[349924857,1737508232441,-825.13054954,0.00020338,2]
[349924858,1737508232454,-435.86945046,0.00020338,2]
[349924859,1737508232466,-537.0,0.00020338,2]
[349924860,1737508232476,-3984.0,0.00020338,2]
[349924861,1737508232486,-150.0,0.00020338,2]
[349924862,1737508232496,-3902.0,0.00020338,2]
[349924863,1737508232506,-150.0,0.00020338,2]
[349924864,1737508232517,-250.0,0.00020441,2]
[349924865,1737508232527,-211.65,0.00020503,2]
[349924866,1737508232536,-420.37,0.00020537,2]
[349924867,1737508232546,-90.77278838,0.00020662,2]
[349924868,1737508232558,-960.34721162,0.00020662,2]
[349924869,1737508232568,-1000.0,0.00020702,2]
[349924870,1737508232578,-169.5,0.00020764,2]
[349924871,1737508232589,-163.02,0.00020788,30]
[349924872,1737508232599,-434.90636149,0.00020856,2]
[349924873,1737508232609,-434.90636149,0.00020896,2]
[349924874,1737508232618,-200.0,0.000209,7]
[349924875,1737508232628,-434.90636149,0.0002092,2]
[349924876,1737508232638,-434.90636149,0.00020934,2]
[349924877,1737508232648,-683.01,0.00020934,2]
[349924878,1737508232658,-434.90636149,0.00020948,2]
[349924879,1737508232668,-500.0,0.00021,7]
[349924880,1737508232685,-700.0,0.000211,7]
[349924881,1737508232699,-438.48,0.00021145,2]
[349924882,1737508232709,-773.11,0.00021145,2]
[349924883,1737508232719,-438.48,0.00021145,2]
[349924884,1737508232729,-773.11,0.00021145,2]
[349924885,1737508232740,-500.0,0.00021178,2]
[349924886,1737508232750,-300.0,0.000212,2]
[349924887,1737508232760,-1000.0,0.000212,7]
[349924888,1737508232772,-1200.0,0.000213,7]
[349924889,1737508232782,-200.0,0.00021356,2]
[349924890,1737508232792,-200.0,0.000214,7]
[349924891,1737508232802,-200.0,0.000214,2]
[349924892,1737508232812,-200.0,0.000214,14]
[349924893,1737508232822,-200.0,0.000214,13]
[349924894,1737508232832,-200.0,0.000214,12]
[349924895,1737508232843,-200.0,0.000214,15]
[349924896,1737508232854,-200.0,0.000214,2]
[349924897,1737508232865,-104.70986106,0.000214,2]
[349924898,1737508232878,-95.29013894,0.000214,2]
[349924899,1737508232889,-200.0,0.000214,14]
[349924900,1737508232901,-200.0,0.000214,12]
[349924901,1737508232912,-200.0,0.000214,15]
[349924902,1737508232923,-160.0,0.000214,2]
[349924903,1737508232934,-160.0,0.000214,15]
[349924904,1737508232945,-160.0,0.000214,14]
[349924906,1737508232956,-161.04,0.000214,12]
[349924908,1737508232966,-2018.0,0.00021444,2]
[349924909,1737508232977,-1269.0,0.00021444,2]
[349924910,1737508232988,-567.0,0.00021444,2]
[349924911,1737508232999,-200.0,0.000215,7]
[349924912,1737508233012,-420.37,0.00021563,2]
[349924913,1737508233025,-200.0,0.000216,7]
[349924914,1737508233036,-759.405,0.000216,2]
[349924915,1737508233047,-506.92653137,0.00021614,2]
[349924916,1737508233059,-500.0,0.00021614,2]
[349924917,1737508233071,-500.0,0.00021614,2]
[349924919,1737508233082,-222.52232936,0.00021614,2]
[349924921,1737508233093,-186.83779662,0.00021614,2]
[349924923,1737508233108,-210.90780658,0.00021614,2]
[349924925,1737508233119,-276.18475939,0.00021614,2]
[349924927,1737508233130,-500.0,0.00021614,2]
[349924929,1737508233141,-422.34714852,0.00021614,2]
[349924931,1737508233150,-155.638521,0.00021614,2]
[349924933,1737508233160,-500.70011739,0.00021614,2]
[349924936,1737508233170,-500.0,0.00021614,2]
[349924939,1737508233181,-501.99067918,0.00021614,2]
[349924942,1737508233190,-500.90117774,0.00021614,2]
[349924945,1737508233201,-172.30564277,0.00021614,2]
[349924947,1737508233212,-501.72815042,0.00021614,2]
[349924949,1737508233222,-500.0,0.00021614,2]
[349924951,1737508233232,-500.0,0.00021614,2]
[349924953,1737508233241,-500.0,0.00021614,2]
[349924955,1737508233251,-500.0,0.00021614,2]
[349924957,1737508233261,-500.0,0.00021614,2]
[349924959,1737508233272,-500.0,0.00021614,2]
[349924961,1737508233282,-500.0,0.00021614,2]
[349924963,1737508233293,-500.0,0.00021614,2]
[349924965,1737508233303,-500.0,0.00021614,2]
[349924967,1737508233313,-500.56221145,0.00021614,2]
[349924969,1737508233323,-500.0,0.00021614,2]
[349924971,1737508233333,-500.0,0.00021614,2]
[349924973,1737508233342,-500.0,0.00021614,2]
[349924975,1737508233352,-500.0,0.00021614,2]
[349924977,1737508233362,-300.0,0.00021614,2]
[349924979,1737508233372,-500.0,0.00021614,2]
[349924981,1737508233382,-500.0,0.00021614,2]
[349924983,1737508233392,-502.75490522,0.00021614,2]
[349924986,1737508233403,-500.0,0.00021614,2]
[349924988,1737508233414,-310.42973405,0.00021614,2]
[349924991,1737508233432,-189.57026595,0.00021614,2]
[349924993,1737508233443,-500.0,0.00021614,2]
[349924995,1737508233453,-500.0,0.00021614,2]
[349924997,1737508233464,-500.0,0.00021614,2]
[349924999,1737508233474,-500.68071562,0.00021614,2]
[349925001,1737508233484,-500.0,0.00021614,2]
[349925003,1737508233494,-500.0,0.00021614,2]
[349925005,1737508233504,-338.42551964,0.00021614,2]
[349925007,1737508233514,-169.54281562,0.00021614,2]
[349925008,1737508233526,-500.0,0.00021614,2]
[349925009,1737508233536,-47.84904932,0.00021614,2]
[349925010,1737508233566,-452.15095068,0.00021614,2]
[349925011,1737508233576,-134.68600435,0.00021614,2]
[349925012,1737508233589,-366.87739065,0.00021614,2]
[349925013,1737508233599,-321.80984516,0.00021614,2]
[349925014,1737508233622,-179.02115665,0.00021614,2]
[349925015,1737508233632,-502.11788159,0.00021614,2]
[349925016,1737508233642,-36.86096176,0.00021614,2]
[349925017,1737508233655,-463.13903824,0.00021614,2]
[349925018,1737508233665,-501.32491652,0.00021614,2]
[349925019,1737508233674,-500.0,0.00021614,2]
[349925020,1737508233683,-500.0,0.00021614,2]
[349925021,1737508233693,-500.0,0.00021614,2]
[349925022,1737508233703,-500.0,0.00021614,2]
[349925023,1737508233714,-833.3775,0.00021668,2]
[349925024,1737508233724,-500.0,0.00021695,2]
[349925025,1737508233735,-200.0,0.000217,7]